[Event "GrandPrix_29.05"]
[Site "Chess.com"]
[Date "2020.05.29"]
[Round "4"]
[White "Winawer81"]
[Black "Logman74"]
[Result "1-0"]
[WhiteElo "2136"]
[BlackElo "2150"]
[TimeControl "600+2"]
[EndTime "10:57:09 PDT"]
[Termination "Winawer81 won by checkmate"]

1. e4 {[%clk 0:10:01.9]} 1... c5 {[%clk 0:10:00]} 2. c3 {[%clk 0:10:02.1]} 2...
d5 {[%clk 0:10:00.3]} 3. exd5 {[%clk 0:10:02.3]} 3... Qxd5 {[%clk 0:10:01]} 4.
d4 {[%clk 0:10:02.5]} 4... Nf6 {[%clk 0:10:01.8]} 5. Nf3 {[%clk 0:10:02.4]} 5...
e6 {[%clk 0:10:01]} 6. Na3 {[%clk 0:10:02.6]} 6... Be7 {[%clk 0:09:59]} 7. Be3
{[%clk 0:09:46]} 7... cxd4 {[%clk 0:09:58.2]} 8. Nb5 {[%clk 0:09:43.7]} 8... Qd8
{[%clk 0:09:58.5]} 9. Qxd4 {[%clk 0:09:34.6]} 9... Nd5 {[%clk 0:07:52.8]} 10.
Qxg7 {[%clk 0:08:57.7]} 10... Bf6 {[%clk 0:07:50.9]} 11. Qg3 {[%clk 0:08:55.1]}
11... Nxe3 {[%clk 0:07:46.2]} 12. fxe3 {[%clk 0:08:54.8]} 12... Na6 {[%clk
0:07:44.6]} 13. Rd1 {[%clk 0:08:32]} 13... Qb6 {[%clk 0:07:41.2]} 14. Nd6+
{[%clk 0:08:10]} 14... Ke7 {[%clk 0:07:39.2]} 15. Nc4 {[%clk 0:08:08.4]} 15...
Qc5 {[%clk 0:07:24]} 16. Qd6+ {[%clk 0:07:11.1]} 16... Qxd6 {[%clk 0:07:22.1]}
17. Nxd6 {[%clk 0:07:10.8]} 17... Nc5 {[%clk 0:07:17.4]} 18. Be2 {[%clk
0:07:05.2]} 18... Bd7 {[%clk 0:07:15.2]} 19. Bb5 {[%clk 0:05:41.9]} 19... Rad8
{[%clk 0:06:44.9]} 20. Ke2 {[%clk 0:05:36.8]} 20... Rhg8 {[%clk 0:06:37.7]} 21.
g3 {[%clk 0:05:34.7]} 21... Na4 {[%clk 0:05:48.2]} 22. Bxd7 {[%clk 0:05:01]}
22... Nxb2 {[%clk 0:05:08.7]} 23. Ne4 {[%clk 0:04:09]} 23... Nxd1 {[%clk
0:05:01.6]} 24. Rxd1 {[%clk 0:04:08.8]} 24... Bxc3 {[%clk 0:04:57.5]} 25. Rc1
{[%clk 0:03:25.5]} 25... Bb4 {[%clk 0:04:26]} 26. Ba4 {[%clk 0:03:18.1]} 26...
f5 {[%clk 0:04:22.5]} 27. Rc7+ {[%clk 0:03:11.2]} 27... Kf8 {[%clk 0:04:09.1]}
28. Neg5 {[%clk 0:03:01]} 28... Rg6 {[%clk 0:03:57.3]} 29. Rxb7 {[%clk
0:02:22.5]} 29... Bc5 {[%clk 0:03:41.4]} 30. Bb3 {[%clk 0:02:19.6]} 30... Rd6
{[%clk 0:03:31.5]} 31. Nxh7+ {[%clk 0:02:08.7]} 31... Ke8 {[%clk 0:03:20.4]} 32.
Nhg5 {[%clk 0:01:34]} 32... a5 {[%clk 0:02:29.7]} 33. h4 {[%clk 0:01:32.3]}
33... Ra6 {[%clk 0:02:19.1]} 34. Ne5 {[%clk 0:01:29.1]} 34... Rh6 {[%clk
0:02:05.4]} 35. Ba4+ {[%clk 0:01:19.5]} 35... Kf8 {[%clk 0:02:02.8]} 36. Nd7+
{[%clk 0:01:14.8]} 36... Kg8 {[%clk 0:02:00]} 37. Nxc5 {[%clk 0:01:14]} 37...
Ra8 {[%clk 0:02:01.3]} 38. Ncxe6 {[%clk 0:01:10.8]} 38... Rc8 {[%clk 0:01:57.5]}
39. Rg7+ {[%clk 0:01:10.3]} 39... Kh8 {[%clk 0:01:57.3]} 40. Nf7# {[%clk
0:01:10.5]} 1-0

[Event "GrandPrix_29.05"]
[Site "Chess.com"]
[Date "2020.05.29"]
[Round "4"]
[White "VojtechPlat"]
[Black "Nitzan_Steinberg"]
[Result "1-0"]
[WhiteElo "2395"]
[BlackElo "2128"]
[TimeControl "600+2"]
[EndTime "10:57:13 PDT"]
[Termination "VojtechPlat won by resignation"]

1. e4 {[%clk 0:10:01.9]} 1... c5 {[%clk 0:09:59.7]} 2. Nf3 {[%clk 0:10:02.3]}
2... d6 {[%clk 0:10:00.5]} 3. c3 {[%clk 0:10:03.1]} 3... Nf6 {[%clk 0:10:00.6]}
4. Bc4 {[%clk 0:10:04]} 4... e6 {[%clk 0:09:59.3]} 5. Qe2 {[%clk 0:10:04.6]}
5... a6 {[%clk 0:09:59.6]} 6. Bb3 {[%clk 0:10:04.4]} 6... b5 {[%clk 0:09:45.2]}
7. d4 {[%clk 0:10:05.5]} 7... Bb7 {[%clk 0:09:38.7]} 8. Bg5 {[%clk 0:10:04.8]}
8... Be7 {[%clk 0:09:20.1]} 9. Nbd2 {[%clk 0:10:04.9]} 9... Nbd7 {[%clk
0:08:30.5]} 10. O-O {[%clk 0:09:58.4]} 10... e5 {[%clk 0:08:26.6]} 11. dxe5
{[%clk 0:09:53.5]} 11... dxe5 {[%clk 0:08:27.5]} 12. Bxf6 {[%clk 0:09:29.1]}
12... Bxf6 {[%clk 0:08:04.9]} 13. Bd5 {[%clk 0:09:29.8]} 13... Qc7 {[%clk
0:08:00.9]} 14. a4 {[%clk 0:09:30.6]} 14... Rb8 {[%clk 0:07:49.8]} 15. axb5
{[%clk 0:09:27.2]} 15... axb5 {[%clk 0:07:50.6]} 16. Ra7 {[%clk 0:08:52.7]}
16... Qb6 {[%clk 0:07:51.1]} 17. Rfa1 {[%clk 0:08:52.7]} 17... O-O {[%clk
0:07:38.9]} 18. Bxb7 {[%clk 0:08:53.6]} 18... Rxb7 {[%clk 0:07:39.8]} 19. R7a6
{[%clk 0:08:54.8]} 19... Qc7 {[%clk 0:07:38.7]} 20. Nf1 {[%clk 0:08:55.8]} 20...
c4 {[%clk 0:07:16.3]} 21. Ne3 {[%clk 0:08:46.3]} 21... Nb6 {[%clk 0:06:45.3]}
22. Ng4 {[%clk 0:08:26.4]} 22... Be7 {[%clk 0:06:46.3]} 23. Ngxe5 {[%clk
0:08:04.7]} 23... Bc5 {[%clk 0:06:43.6]} 24. Ng4 {[%clk 0:07:20.4]} 24... Re8
{[%clk 0:06:34.2]} 25. e5 {[%clk 0:07:09]} 25... Qc6 {[%clk 0:06:21.6]} 26. Rd1
{[%clk 0:06:01.5]} 26... Rd7 {[%clk 0:06:03.5]} 27. Raa1 {[%clk 0:05:55.7]}
27... Red8 {[%clk 0:05:44]} 28. Rxd7 {[%clk 0:05:53.2]} 28... Qxd7 {[%clk
0:05:26.1]} 29. h3 {[%clk 0:05:54.2]} 29... Qd3 {[%clk 0:05:05.1]} 30. Qe1
{[%clk 0:05:30.2]} 30... h5 {[%clk 0:04:44]} 31. Ne3 {[%clk 0:05:11.9]} 31...
Qe4 {[%clk 0:04:35.4]} 32. Nf1 {[%clk 0:04:28.7]} 32... Qxe1 {[%clk 0:04:13.3]}
33. Rxe1 {[%clk 0:04:27]} 33... Na4 {[%clk 0:04:11.5]} 34. Rb1 {[%clk
0:04:27.5]} 34... Rd3 {[%clk 0:03:59.4]} 35. N1d2 {[%clk 0:04:24.4]} 35... Kf8
{[%clk 0:03:35.6]} 36. Kf1 {[%clk 0:04:23.5]} 36... Ke7 {[%clk 0:03:35.7]} 37.
Ne4 {[%clk 0:04:17.5]} 37... Ke6 {[%clk 0:03:02.8]} 38. b3 {[%clk 0:03:40.6]}
38... cxb3 {[%clk 0:02:39.3]} 39. Rxb3 {[%clk 0:03:41.1]} 39... Kd5 {[%clk
0:02:40.4]} 40. Nfd2 {[%clk 0:03:16.5]} 40... b4 {[%clk 0:02:10.4]} 41. Ke2
{[%clk 0:02:36.2]} 41... Rxc3 {[%clk 0:02:07.8]} 42. Nxc3+ {[%clk 0:02:37.1]}
42... bxc3 {[%clk 0:01:55]} 43. Nf3 {[%clk 0:02:38.1]} 43... Kc4 {[%clk
0:01:55.8]} 44. Rb7 {[%clk 0:02:39]} 44... Bb4 {[%clk 0:01:07.2]} 45. Ne1 {[%clk
0:02:39.2]} 45... Kb3 {[%clk 0:01:01.5]} 46. Nd3 {[%clk 0:02:32]} 1-0

[Event "GrandPrix_29.05"]
[Site "Chess.com"]
[Date "2020.05.29"]
[Round "4"]
[White "Saqo007"]
[Black "zuagroasta"]
[Result "1-0"]
[WhiteElo "2023"]
[BlackElo "1354"]
[TimeControl "600+2"]
[EndTime "10:57:18 PDT"]
[Termination "Saqo007 won by resignation"]

1. d4 {[%clk 0:10:01.9]} 1... Nf6 {[%clk 0:09:59.3]} 2. c4 {[%clk 0:09:59.1]}
2... e6 {[%clk 0:09:59.7]} 3. Nc3 {[%clk 0:09:58.9]} 3... Bb4 {[%clk 0:09:59.6]}
4. a3 {[%clk 0:09:59.5]} 4... Bxc3+ {[%clk 0:09:59.3]} 5. bxc3 {[%clk
0:09:59.1]} 5... c5 {[%clk 0:09:19.7]} 6. e3 {[%clk 0:09:58.6]} 6... b6 {[%clk
0:09:12]} 7. Bd3 {[%clk 0:09:58.7]} 7... Bb7 {[%clk 0:09:12.4]} 8. f3 {[%clk
0:09:58.3]} 8... Nc6 {[%clk 0:09:07.4]} 9. Ne2 {[%clk 0:09:58.9]} 9... O-O
{[%clk 0:09:03.3]} 10. O-O {[%clk 0:09:59.4]} 10... Ba6 {[%clk 0:08:59.5]} 11.
e4 {[%clk 0:09:59.2]} 11... Ne8 {[%clk 0:08:59.5]} 12. f4 {[%clk 0:09:58]} 12...
f5 {[%clk 0:08:47.1]} 13. exf5 {[%clk 0:09:58.4]} 13... exf5 {[%clk 0:08:47.7]}
14. dxc5 {[%clk 0:09:59]} 14... bxc5 {[%clk 0:08:46.7]} 15. Be3 {[%clk
0:09:58.4]} 15... d6 {[%clk 0:08:43]} 16. Ng3 {[%clk 0:09:59.4]} 16... g6 {[%clk
0:08:41.7]} 17. Bxf5 {[%clk 0:09:59.5]} 17... gxf5 {[%clk 0:08:40.3]} 18. Qd5+
{[%clk 0:10:00.3]} 18... Rf7 {[%clk 0:08:40.6]} 19. Qxc6 {[%clk 0:10:01.3]}
19... Bb7 {[%clk 0:08:40.8]} 20. Qa4 {[%clk 0:10:00.8]} 20... h5 {[%clk
0:08:26.5]} 21. Qc2 {[%clk 0:08:39.1]} 21... h4 {[%clk 0:07:42.6]} 22. Nxf5
{[%clk 0:08:34.7]} 22... Qf6 {[%clk 0:07:41.9]} 23. g4 {[%clk 0:08:30]} 23...
hxg3 {[%clk 0:06:35.8]} 24. Nxg3 {[%clk 0:08:27.8]} 24... Qh4 {[%clk 0:06:17]}
25. Rf2 {[%clk 0:07:24.7]} 25... Rg7 {[%clk 0:05:20.1]} 26. Rg2 {[%clk
0:05:43.8]} 26... Bxg2 {[%clk 0:05:12.3]} 27. Qxg2 {[%clk 0:05:42.9]} 27... Rb8
{[%clk 0:05:11.4]} 28. Qd5+ {[%clk 0:05:28.1]} 28... Kf8 {[%clk 0:05:11.4]} 29.
Qg2 {[%clk 0:05:08.4]} 29... Nf6 {[%clk 0:05:06.7]} 30. Kh1 {[%clk 0:04:49.1]}
30... Rgb7 {[%clk 0:04:18.6]} 31. Rg1 {[%clk 0:04:35.4]} 31... Rb1 {[%clk
0:04:09.6]} 32. Bc1 {[%clk 0:04:01.3]} 32... Ng4 {[%clk 0:04:00.1]} 33. Ne4
{[%clk 0:03:58.8]} 33... Re8 {[%clk 0:03:26.1]} 34. Ng3 {[%clk 0:03:07.7]} 34...
Qh7 {[%clk 0:02:59.9]} 35. f5 {[%clk 0:03:04.6]} 35... Qb7 {[%clk 0:02:29.6]}
36. Qxb7 {[%clk 0:02:47.5]} 36... Rxb7 {[%clk 0:02:28.7]} 37. Nh5 {[%clk
0:02:47.5]} 37... Re4 {[%clk 0:01:57.9]} 38. h3 {[%clk 0:02:43.2]} 38... Nf2+
{[%clk 0:01:51.5]} 39. Kg2 {[%clk 0:02:42.1]} 39... Nd3 {[%clk 0:01:44.7]} 40.
Bh6+ {[%clk 0:02:39.8]} 40... Kf7 {[%clk 0:01:32]} 41. Kf3 {[%clk 0:02:33.8]}
41... Rc7 {[%clk 0:01:25.1]} 42. Rg7+ {[%clk 0:02:31.1]} 42... Ke8 {[%clk
0:01:22.3]} 43. Nf6+ {[%clk 0:02:04.8]} 43... Kd8 {[%clk 0:01:20.3]} 44. Rg8+
{[%clk 0:02:04.9]} 44... Ke7 {[%clk 0:01:19.4]} 45. Nd5+ {[%clk 0:02:05.9]}
45... Kf7 {[%clk 0:01:18.4]} 46. Rg7+ {[%clk 0:02:05.9]} 1-0

[Event "GrandPrix_29.05"]
[Site "Chess.com"]
[Date "2020.05.29"]
[Round "4"]
[White "komandoras123"]
[Black "Petriashvili02"]
[Result "0-1"]
[WhiteElo "2276"]
[BlackElo "2233"]
[TimeControl "600+2"]
[EndTime "10:57:23 PDT"]
[Termination "Petriashvili02 won on time"]

1. c4 {[%clk 0:10:01.9]} 1... c5 {[%clk 0:09:55.7]} 2. Nf3 {[%clk 0:10:02.5]}
2... Nf6 {[%clk 0:09:55.6]} 3. Nc3 {[%clk 0:09:58.2]} 3... Nc6 {[%clk
0:09:56.6]} 4. e3 {[%clk 0:09:58.5]} 4... g6 {[%clk 0:09:14.9]} 5. d4 {[%clk
0:09:52.5]} 5... d6 {[%clk 0:09:16.4]} 6. Be2 {[%clk 0:09:29.2]} 6... Bg7 {[%clk
0:09:17.4]} 7. O-O {[%clk 0:09:30.3]} 7... O-O {[%clk 0:09:18.8]} 8. b3 {[%clk
0:09:31.3]} 8... cxd4 {[%clk 0:09:11.5]} 9. Nxd4 {[%clk 0:08:37.6]} 9... Bd7
{[%clk 0:08:26.1]} 10. Bb2 {[%clk 0:08:13.7]} 10... Rc8 {[%clk 0:08:25.8]} 11.
Bf3 {[%clk 0:06:52.2]} 11... a6 {[%clk 0:08:15.8]} 12. Qd2 {[%clk 0:06:49.5]}
12... Qa5 {[%clk 0:08:13.6]} 13. Rfd1 {[%clk 0:06:47.1]} 13... Rfe8 {[%clk
0:08:13.5]} 14. Nde2 {[%clk 0:06:17.5]} 14... b5 {[%clk 0:07:45.6]} 15. cxb5
{[%clk 0:05:39.8]} 15... axb5 {[%clk 0:07:47.5]} 16. a4 {[%clk 0:05:41.2]} 16...
bxa4 {[%clk 0:06:59.7]} 17. Nxa4 {[%clk 0:04:27.1]} 17... Qxd2 {[%clk
0:06:06.7]} 18. Rxd2 {[%clk 0:04:29]} 18... Na5 {[%clk 0:06:04.9]} 19. Ra3
{[%clk 0:01:30.2]} 19... Nxb3 {[%clk 0:05:43.7]} 20. Rxb3 {[%clk 0:01:29.1]}
20... Bxa4 {[%clk 0:05:35.8]} 21. Rb4 {[%clk 0:01:30.2]} 21... Bc6 {[%clk
0:05:15.4]} 22. Bxc6 {[%clk 0:01:17.1]} 22... Rxc6 {[%clk 0:05:17.3]} 23. h3
{[%clk 0:01:15.8]} 23... h5 {[%clk 0:05:12.1]} 24. Nf4 {[%clk 0:01:11.2]} 24...
Nd7 {[%clk 0:04:37.2]} 25. Bxg7 {[%clk 0:00:57.5]} 25... Kxg7 {[%clk 0:04:39.1]}
26. Rb7 {[%clk 0:00:58.1]} 26... Nc5 {[%clk 0:04:36.7]} 27. Ra7 {[%clk
0:00:58.6]} 27... Ne4 {[%clk 0:04:36.3]} 28. Rb2 {[%clk 0:00:58]} 28... Rc1+
{[%clk 0:04:14.2]} 29. Kh2 {[%clk 0:00:57.2]} 29... Nc5 {[%clk 0:04:14.9]} 30.
h4 {[%clk 0:00:42.4]} 30... Rd1 {[%clk 0:04:05]} 31. Rc2 {[%clk 0:00:28.1]}
31... Kf6 {[%clk 0:03:30.1]} 32. f3 {[%clk 0:00:21.9]} 32... Ne6 {[%clk
0:03:18.7]} 33. Nxe6 {[%clk 0:00:09.9]} 33... Kxe6 {[%clk 0:03:20.6]} 34. e4
{[%clk 0:00:10.4]} 34... Re1 {[%clk 0:03:17.5]} 35. Rcc7 {[%clk 0:00:10.7]}
35... f5 {[%clk 0:03:18.1]} 36. exf5+ {[%clk 0:00:07.7]} 36... gxf5 {[%clk
0:03:20]} 37. Kg3 {[%clk 0:00:08.6]} 37... Kf6 {[%clk 0:03:15.4]} 38. Kf2 {[%clk
0:00:09.3]} 38... Rb1 {[%clk 0:03:11.7]} 39. Rc2 {[%clk 0:00:09.8]} 39... f4
{[%clk 0:02:56]} 40. Rd7 {[%clk 0:00:06]} 40... Ra8 {[%clk 0:02:51.9]} 41. Re2
{[%clk 0:00:04.1]} 41... Raa1 {[%clk 0:02:50.6]} 0-1

[Event "GrandPrix_29.05"]
[Site "Chess.com"]
[Date "2020.05.29"]
[Round "4"]
[White "Lion_DL"]
[Black "XeresLt"]
[Result "1-0"]
[WhiteElo "2165"]
[BlackElo "1809"]
[TimeControl "600+2"]
[EndTime "10:57:24 PDT"]
[Termination "Lion_DL won by checkmate"]

1. e4 {[%clk 0:10:01.9]} 1... c5 {[%clk 0:10:00.3]} 2. Nf3 {[%clk 0:10:01.3]}
2... e6 {[%clk 0:10:00.1]} 3. d3 {[%clk 0:10:01.4]} 3... Nc6 {[%clk 0:09:58.8]}
4. g3 {[%clk 0:10:02]} 4... g6 {[%clk 0:09:59.8]} 5. Bg5 {[%clk 0:10:00.4]} 5...
Be7 {[%clk 0:09:54.1]} 6. h4 {[%clk 0:09:58.6]} 6... h6 {[%clk 0:09:50]} 7. Bf4
{[%clk 0:09:26.4]} 7... d6 {[%clk 0:09:48]} 8. Bg2 {[%clk 0:08:40]} 8... Nf6
{[%clk 0:09:17.6]} 9. Nc3 {[%clk 0:07:44.4]} 9... Ng4 {[%clk 0:08:48.6]} 10. Qd2
{[%clk 0:06:05.5]} 10... e5 {[%clk 0:08:29.5]} 11. Be3 {[%clk 0:06:04.5]} 11...
Nxe3 {[%clk 0:08:05.2]} 12. Qxe3 {[%clk 0:06:03.9]} 12... Be6 {[%clk 0:08:02.5]}
13. O-O-O {[%clk 0:04:47.9]} 13... Qa5 {[%clk 0:08:00.7]} 14. Kb1 {[%clk
0:04:44.9]} 14... O-O-O {[%clk 0:07:36]} 15. Nd2 {[%clk 0:04:42.8]} 15... a6
{[%clk 0:07:24.4]} 16. Nd5 {[%clk 0:04:37.1]} 16... Bxd5 {[%clk 0:07:15.4]} 17.
exd5 {[%clk 0:04:37.8]} 17... Nd4 {[%clk 0:07:12.5]} 18. c3 {[%clk 0:04:21.4]}
18... Nb5 {[%clk 0:06:48]} 19. Nc4 {[%clk 0:03:55.5]} 19... Qc7 {[%clk 0:06:47]}
20. Rhe1 {[%clk 0:03:36.8]} 20... Bf6 {[%clk 0:06:38.1]} 21. f4 {[%clk 0:03:10]}
21... exf4 {[%clk 0:06:35.1]} 22. Qxf4 {[%clk 0:03:10.6]} 22... Bg7 {[%clk
0:06:35.8]} 23. a4 {[%clk 0:02:59.6]} 23... Na7 {[%clk 0:06:33.9]} 24. a5 {[%clk
0:02:59.4]} 24... Kb8 {[%clk 0:06:28.7]} 25. Re2 {[%clk 0:02:44.4]} 25... Nb5
{[%clk 0:05:21.1]} 26. Kc2 {[%clk 0:02:44.7]} 26... Rhe8 {[%clk 0:05:19.6]} 27.
Rde1 {[%clk 0:02:45]} 27... Rxe2+ {[%clk 0:05:15.1]} 28. Rxe2 {[%clk 0:02:46.9]}
28... f5 {[%clk 0:05:00.1]} 29. Re6 {[%clk 0:02:44]} 29... Ka7 {[%clk
0:04:45.6]} 30. Rxg6 {[%clk 0:02:43.1]} 30... Be5 {[%clk 0:04:46]} 31. Qxf5
{[%clk 0:02:37.1]} 31... Re8 {[%clk 0:04:32.8]} 32. Re6 {[%clk 0:02:35]} 32...
Rxe6 {[%clk 0:04:15.5]} 33. dxe6 {[%clk 0:02:31.8]} 33... Bxg3 {[%clk
0:04:16.2]} 34. h5 {[%clk 0:02:17.8]} 34... Bh4 {[%clk 0:04:17]} 35. Qd5 {[%clk
0:02:13.5]} 35... Be7 {[%clk 0:04:11.1]} 36. Nb6 {[%clk 0:02:11.9]} 36... Kb8
{[%clk 0:04:02.3]} 37. Qf3 {[%clk 0:02:07.2]} 37... Bd8 {[%clk 0:03:36.4]} 38.
Qf7 {[%clk 0:01:51.6]} 38... d5 {[%clk 0:03:22.7]} 39. Nxd5 {[%clk 0:01:12.3]}
39... Qxa5 {[%clk 0:03:09.1]} 40. Ne3 {[%clk 0:01:13.3]} 40... Qa4+ {[%clk
0:02:49.2]} 41. Kd2 {[%clk 0:01:12.4]} 41... Nd6 {[%clk 0:02:47.5]} 42. Qf8
{[%clk 0:01:00.9]} 42... Kc7 {[%clk 0:02:35.3]} 43. e7 {[%clk 0:00:56.5]} 43...
Bxe7 {[%clk 0:02:21.6]} 44. Qxe7+ {[%clk 0:00:58.4]} 44... Qd7 {[%clk 0:02:23]}
45. Nd5+ {[%clk 0:00:57.8]} 45... Kc8 {[%clk 0:02:24.4]} 46. Bh3 {[%clk
0:00:56.1]} 46... Qxh3 {[%clk 0:02:19.9]} 47. Qc7# {[%clk 0:00:56.2]} 1-0

[Event "GrandPrix_29.05"]
[Site "Chess.com"]
[Date "2020.05.29"]
[Round "4"]
[White "Funo09"]
[Black "SantoBlue"]
[Result "1-0"]
[WhiteElo "2612"]
[BlackElo "2389"]
[TimeControl "600+2"]
[EndTime "10:57:29 PDT"]
[Termination "Funo09 won by resignation"]

1. e4 {[%clk 0:10:01.9]} 1... d6 {[%clk 0:09:51.2]} 2. d4 {[%clk 0:10:02.6]}
2... Nf6 {[%clk 0:09:51.6]} 3. Nc3 {[%clk 0:10:03.8]} 3... e5 {[%clk 0:09:47.7]}
4. Nge2 {[%clk 0:10:04.3]} 4... Be7 {[%clk 0:09:46.9]} 5. h3 {[%clk 0:10:05.1]}
5... c6 {[%clk 0:09:41.7]} 6. a4 {[%clk 0:10:06]} 6... a5 {[%clk 0:09:34.7]} 7.
g4 {[%clk 0:10:06.5]} 7... h5 {[%clk 0:09:30.2]} 8. g5 {[%clk 0:09:45.2]} 8...
Nh7 {[%clk 0:09:31.2]} 9. h4 {[%clk 0:09:44.9]} 9... Bg4 {[%clk 0:09:31]} 10.
Bh3 {[%clk 0:08:40.5]} 10... Bxh3 {[%clk 0:08:47.1]} 11. Rxh3 {[%clk 0:08:42.4]}
11... Nd7 {[%clk 0:08:48.5]} 12. f4 {[%clk 0:08:13.2]} 12... Nhf8 {[%clk
0:07:58.6]} 13. Be3 {[%clk 0:07:49.9]} 13... Qc7 {[%clk 0:07:39.5]} 14. Qd3
{[%clk 0:07:21.5]} 14... Ne6 {[%clk 0:07:31.6]} 15. O-O-O {[%clk 0:06:15.9]}
15... exd4 {[%clk 0:06:55.8]} 16. Nxd4 {[%clk 0:06:07.9]} 16... Ndc5 {[%clk
0:06:54.7]} 17. Qe2 {[%clk 0:05:04.4]} 17... O-O-O {[%clk 0:06:08.2]} 18. f5
{[%clk 0:04:53]} 18... Nf8 {[%clk 0:06:06.5]} 19. Qc4 {[%clk 0:03:44.4]} 19...
Nxe4 {[%clk 0:04:07.9]} 20. Ndb5 {[%clk 0:03:45]} 20... cxb5 {[%clk 0:04:05.8]}
21. Qxe4 {[%clk 0:03:46.1]} 21... Re8 {[%clk 0:02:08]} 22. Nxb5 {[%clk
0:01:59.4]} 22... Qd7 {[%clk 0:02:00.7]} 23. f6 {[%clk 0:01:11.4]} 23... gxf6
{[%clk 0:01:43.1]} 24. gxf6 {[%clk 0:01:08.9]} 24... Qxh3 {[%clk 0:00:46.5]} 25.
fxe7 {[%clk 0:01:09.7]} 25... Qd7 {[%clk 0:00:45.6]} 26. Nxd6+ {[%clk
0:01:07.4]} 26... Kb8 {[%clk 0:00:46.8]} 27. Nxe8 {[%clk 0:01:05.1]} 27... Qxe8
{[%clk 0:00:46.4]} 28. Rd8+ {[%clk 0:01:05.3]} 1-0

[Event "GrandPrix_29.05"]
[Site "Chess.com"]
[Date "2020.05.29"]
[Round "4"]
[White "Yuri202062"]
[Black "fm_magua"]
[Result "0-1"]
[WhiteElo "1901"]
[BlackElo "1808"]
[TimeControl "600+2"]
[EndTime "10:57:34 PDT"]
[Termination "fm_magua won on time"]

1. d4 {[%clk 0:10:01.9]} 1... Nf6 {[%clk 0:09:58]} 2. c4 {[%clk 0:10:02.8]} 2...
g6 {[%clk 0:09:58.2]} 3. Nc3 {[%clk 0:10:03.5]} 3... Bg7 {[%clk 0:09:58.8]} 4.
e4 {[%clk 0:10:04.3]} 4... d6 {[%clk 0:09:59.6]} 5. Be2 {[%clk 0:10:05.2]} 5...
O-O {[%clk 0:09:59.2]} 6. Be3 {[%clk 0:10:06]} 6... e5 {[%clk 0:09:59.2]} 7. d5
{[%clk 0:10:06.3]} 7... a5 {[%clk 0:09:59.5]} 8. h4 {[%clk 0:10:00.3]} 8... Na6
{[%clk 0:09:58.9]} 9. h5 {[%clk 0:09:59.6]} 9... Nc5 {[%clk 0:09:59.5]} 10. Qc2
{[%clk 0:09:59.9]} 10... b6 {[%clk 0:09:55.4]} 11. Nh3 {[%clk 0:09:45]} 11...
Ng4 {[%clk 0:09:52.4]} 12. Bxg4 {[%clk 0:09:39.8]} 12... Bxg4 {[%clk 0:09:52.8]}
13. f3 {[%clk 0:09:39.6]} 13... Bxh3 {[%clk 0:09:47.6]} 14. Rxh3 {[%clk
0:09:39.5]} 14... f5 {[%clk 0:09:49.1]} 15. hxg6 {[%clk 0:09:36.1]} 15... hxg6
{[%clk 0:09:45.8]} 16. O-O-O {[%clk 0:09:36.6]} 16... f4 {[%clk 0:09:46]} 17.
Bf2 {[%clk 0:09:19.5]} 17... Kf7 {[%clk 0:09:44.5]} 18. Rdh1 {[%clk 0:09:18.8]}
18... Qe7 {[%clk 0:09:35.9]} 19. Nb5 {[%clk 0:08:55.8]} 19... Rh8 {[%clk
0:09:35.7]} 20. a3 {[%clk 0:08:28]} 20... Rxh3 {[%clk 0:09:34.1]} 21. Rxh3
{[%clk 0:08:28.3]} 21... Rh8 {[%clk 0:09:33.6]} 22. Rxh8 {[%clk 0:08:28]} 22...
Bxh8 {[%clk 0:09:35.5]} 23. b4 {[%clk 0:08:22.6]} 23... Nb7 {[%clk 0:09:27.7]}
24. Qd1 {[%clk 0:06:59.6]} 24... Bf6 {[%clk 0:09:22.4]} 25. Qh1 {[%clk
0:06:58.8]} 25... Kg7 {[%clk 0:09:19.9]} 26. Qh3 {[%clk 0:06:57.7]} 26... Qd8
{[%clk 0:09:12.2]} 27. Kc2 {[%clk 0:06:43.1]} 27... axb4 {[%clk 0:09:05.9]} 28.
axb4 {[%clk 0:06:43.1]} 28... Qa8 {[%clk 0:09:05.1]} 29. Qd7+ {[%clk 0:06:31.2]}
29... Kh6 {[%clk 0:09:00.2]} 30. Nc3 {[%clk 0:06:18.5]} 30... Qd8 {[%clk
0:08:29.9]} 31. Qe6 {[%clk 0:05:51.6]} 31... Kg7 {[%clk 0:08:05.2]} 32. Kb3
{[%clk 0:05:36.1]} 32... Kh6 {[%clk 0:07:44.3]} 33. Nb5 {[%clk 0:05:05.2]} 33...
Kg7 {[%clk 0:07:40.5]} 34. Na7 {[%clk 0:04:57.9]} 34... Qa8 {[%clk 0:07:33.5]}
35. Qd7+ {[%clk 0:04:57.5]} 35... Kh6 {[%clk 0:07:31.9]} 36. Qa4 {[%clk
0:04:39.4]} 36... g5 {[%clk 0:06:56.7]} 37. Nb5 {[%clk 0:04:33.4]} 37... Qc8
{[%clk 0:06:55]} 38. Na7 {[%clk 0:04:23.5]} 38... Qa8 {[%clk 0:06:53.9]} 39. Nc6
{[%clk 0:03:53.8]} 39... Qc8 {[%clk 0:06:52.8]} 40. Qa7 {[%clk 0:03:50.3]} 40...
g4 {[%clk 0:06:43.6]} 41. Qb8 {[%clk 0:03:48]} 41... Qd7 {[%clk 0:06:38.2]} 42.
Qxb7 {[%clk 0:02:15]} 42... gxf3 {[%clk 0:06:37.8]} 43. gxf3 {[%clk 0:02:15.3]}
43... Qh3 {[%clk 0:06:38.3]} 44. Qxc7 {[%clk 0:02:11.9]} 44... Qxf3+ {[%clk
0:06:38.7]} 45. Ka4 {[%clk 0:02:13]} 45... Qxf2 {[%clk 0:06:37.7]} 46. Qxd6
{[%clk 0:02:14.1]} 46... Kg5 {[%clk 0:06:17.9]} 47. Nxe5 {[%clk 0:02:07.3]}
47... Qc2+ {[%clk 0:06:18.8]} 48. Kb5 {[%clk 0:02:05.9]} 48... Qxe4 {[%clk
0:06:19.6]} 49. Nd7 {[%clk 0:01:27.6]} 49... Be7 {[%clk 0:06:07.3]} 50. Qxb6
{[%clk 0:00:47.3]} 50... f3 {[%clk 0:06:07.7]} 51. Qg1+ {[%clk 0:00:42.9]} 51...
Kf4 {[%clk 0:06:01.2]} 52. Qh2+ {[%clk 0:00:40.6]} 52... Ke3 {[%clk 0:05:59]}
53. Qh6+ {[%clk 0:00:20.5]} 53... Ke2 {[%clk 0:05:57.4]} 54. Qh5 {[%clk
0:00:20.2]} 54... Kd2 {[%clk 0:05:18.2]} 55. Ne5 {[%clk 0:00:04.4]} 55... f2
{[%clk 0:05:05.4]} 56. Nf3+ {[%clk 0:00:04.9]} 56... Kc3 {[%clk 0:04:46.6]} 57.
Nh2 {[%clk 0:00:05.6]} 57... Qxc4+ {[%clk 0:04:46]} 58. Kb6 {[%clk 0:00:03]}
58... Qxb4+ {[%clk 0:04:24.8]} 59. Kc6 {[%clk 0:00:02.9]} 59... Qc5+ {[%clk
0:04:10.4]} 0-1